bitfinex-derivatives/quotes_ETHF0:USTF0_20240925
["timestamp","ask_amount","ask_price","bid_price","bid_amount"]
[1727281124065,3.2078,2600.8,2600.6,0.3845]
[1727281124267,3.2078,2600.8,2600.5,0.38451]
[1727281124978,3.59228,2600.8,2600.4,1.63402]
[1727281125170,0.38449,2600.7,2600.4,1.63402]
[1727281125372,3.2078,2600.8,2600.3,3.2078]
[1727281125671,0.38451,2600.6,2600.3,3.59234]
[1727281125870,0.6277,2600.7,2600.0,4.4603]
[1727281126074,0.6277,2600.7,2600.2,0.38455]
[1727281126260,0.38454,2600.4,2600.1,0.38457]
[1727281126468,3.2078,2600.5,2600.0,1.2525]
[1727281126764,3.2078,2600.5,2600.0,0.6124]
[1727281126765,3.2078,2600.2,2600.0,0.6124]
[1727281127176,3.59237,2600.2,2599.9,0.3846]
[1727281128074,0.38458,2600.1,2599.8,0.38461]
[1727281128667,3.59237,2600.2,2599.9,0.3846]
[1727281128868,0.38459,2600.1,2599.8,0.38462]
[1727281129072,0.38459,2600.1,2599.9,0.38461]
[1727281129271,0.38458,2600.1,2599.7,3.2078]
[1727281129673,3.59237,2600.2,2599.9,0.3846]
[1727281129880,0.38458,2600.1,2599.9,0.3846]
[1727281130074,0.38458,2600.1,2599.8,0.38461]
[1727281130274,0.3846,2600.0,2599.7,3.2078]
[1727281130475,0.6292,2600.1,2599.7,3.2078]
[1727281130476,0.38461,2599.9,2599.7,3.2078]
[1727281130671,0.38461,2599.9,2599.4,0.6124]
[1727281130672,3.2078,2599.9,2599.4,0.6124]
[1727281130971,3.2078,2599.9,2599.4,0.99708]
[1727281130972,0.38465,2599.6,2599.4,0.99708]
[1727281131472,0.38462,2599.8,2599.5,0.38466]
[1727281131680,0.38464,2599.7,2599.5,0.38466]
[1727281132084,3.2078,2599.9,2599.4,0.6124]
[1727281132275,0.38463,2599.8,2599.6,0.38464]
[1727281132676,4.23103,2599.8,2599.6,0.38464]
[1727281133278,0.38463,2599.8,2599.6,0.38464]
[1727281133883,0.38464,2599.7,2599.6,0.38464]
[1727281134583,3.2078,2599.9,2599.4,0.38467]
[1727281134784,0.38465,2599.6,2599.4,0.38467]
[1727281135285,0.38467,2599.5,2599.3,1.00588]
[1727281135785,0.38467,2599.5,2599.4,0.38468]
[1727281135990,1.02775,2599.7,2599.5,0.38466]
[1727281136187,0.38465,2599.6,2599.5,0.38466]
[1727281136379,0.38465,2599.6,2599.4,0.38467]
[1727281136576,0.38465,2599.6,2599.4,0.38468]
[1727281136886,0.38462,2599.8,2599.7,0.38463]
[1727281137098,3.2078,2599.9,2599.8,0.38462]
[1727281137294,5.3503,2600.1,2599.9,0.38461]
[1727281137587,1.65688,2600.1,2599.9,0.38461]
[1727281138076,3.2078,2600.2,2600.1,0.38458]
[1727281138478,3.2078,2600.2,2600.0,0.38459]
[1727281138684,0.38458,2600.1,2600.0,0.38459]
[1727281138888,0.38458,2600.1,2599.8,1.62961]
[1727281138889,0.3846,2600.0,2599.8,1.62961]
[1727281139083,0.38461,2599.9,2599.8,1.62961]
[1727281139881,0.3846,2600.0,2599.9,0.3846]
[1727281140074,0.38461,2599.9,2599.8,1.62961]
[1727281140490,0.38459,2600.0,2599.9,0.3846]
[1727281141297,0.38459,2600.0,2599.8,1.62961]
[1727281141475,0.38459,2600.0,2599.9,0.38461]
[1727281141791,3.59237,2600.2,2600.1,0.38458]
[1727281142179,3.2078,2600.2,2600.1,0.38458]
[1727281142382,3.2078,2600.7,2600.6,0.3845]
[1727281143482,0.5908,2601.0,2600.9,0.38446]
[1727281143693,3.2078,2601.0,2600.9,3.08446]
[1727281144189,3.2078,2601.0,2600.9,3.73146]
[1727281144488,3.2078,2601.0,2600.9,1.03146]
[1727281144887,0.38439,2601.4,2601.3,0.38439]
[1727281145194,0.38439,2601.4,2601.3,0.3844]
[1727281145195,0.38438,2601.4,2601.3,0.3844]
[1727281145483,1.2293,2601.5,2600.9,0.647]
[1727281145688,0.38444,2601.0,2600.9,1.03145]
[1727281146075,3.2078,2601.3,2600.9,0.647]
[1727281146279,3.2078,2601.3,2601.2,0.38441]
[1727281146988,3.2078,2601.3,2600.9,0.647]
[1727281147182,3.2078,2601.3,2601.1,0.38443]
[1727281147183,0.38442,2601.2,2601.1,0.38443]
[1727281148093,0.38443,2601.1,2601.0,0.38443]
[1727281148280,0.38444,2601.1,2601.0,0.38443]
[1727281149091,0.38442,2601.2,2601.1,0.38442]
[1727281149587,4.22071,2601.3,2601.2,0.38441]
[1727281149989,3.2078,2601.3,2601.2,0.38441]
[1727281150388,7.0518,2601.3,2600.9,0.647]
[1727281150584,0.38444,2601.1,2601.0,0.38444]
[1727281150997,3.59221,2601.3,2601.2,0.38441]
[1727281151389,0.38442,2601.2,2601.1,0.38442]
[1727281151691,3.2078,2601.3,2601.2,0.38441]
[1727281151893,3.5922,2601.3,2601.2,0.38441]
[1727281152100,3.2078,2601.3,2601.2,0.38441]
[1727281152793,4.16882,2601.3,2600.9,0.647]
[1727281153003,0.38441,2601.2,2601.1,0.38442]
[1727281153684,0.38441,2601.2,2600.9,0.647]
[1727281153685,0.38443,2601.1,2601.0,0.38443]
[1727281153882,0.38444,2601.0,2600.9,1.03145]
[1727281154396,0.96105,2601.2,2600.9,1.03145]
[1727281154397,0.38444,2601.1,2601.0,0.38444]
[1727281154788,0.96105,2601.2,2600.9,1.03145]
[1727281154789,0.38444,2601.0,2600.9,1.03145]
[1727281156396,3.2078,2601.3,2600.4,3.2078]
[1727281156602,0.3845,2600.7,2600.6,0.38449]
[1727281157190,0.38448,2600.8,2600.7,0.38448]
[1727281158893,0.3845,2600.7,2600.6,0.38449]
[1727281159196,3.2078,2600.7,2600.5,0.3845]
[1727281159389,3.2078,2600.7,2600.6,0.3845]
[1727281159997,3.2078,2600.7,2600.6,1.34576]
[1727281161498,3.2078,2600.7,2600.6,0.3845]
[1727281161998,0.38448,2600.8,2600.7,0.38449]
[1727281162395,0.38448,2600.9,2600.8,0.38446]
[1727281167306,0.38454,2600.5,2600.4,0.38452]
[1727281167698,0.38451,2600.6,2600.5,0.3845]
[1727281167897,0.38451,2600.6,2600.5,1.0167]
[1727281168907,0.38453,2600.5,2600.4,0.38452]
[1727281169913,0.96137,2600.4,2599.8,1.56455]
[1727281170207,0.38457,2600.2,2600.1,0.38456]
[1727281170919,0.98447,2600.2,2600.1,0.38456]
[1727281175718,0.3846,2600.0,2599.9,0.38459]
[1727281176007,0.5999,2600.2,2600.0,0.38458]
[1727281176008,0.38459,2600.1,2600.0,0.38458]
[1727281176513,0.38459,2600.1,2599.9,0.3846]
[1727281176514,0.38461,2600.0,2599.9,0.3846]
[1727281176904,0.38459,2600.1,2600.0,0.38458]
[1727281177107,0.38461,2600.0,2599.9,0.3846]
[1727281177305,0.38458,2600.1,2600.0,0.38458]
[1727281177804,0.98447,2600.2,2600.1,0.38458]
[1727281178211,0.38461,2600.0,2599.9,0.3846]
[1727281178509,0.38462,2599.9,2599.8,0.38461]
[1727281178811,3.59238,2600.1,2600.0,0.38459]
[1727281179002,3.2078,2600.1,2600.0,0.38459]
[1727281179906,3.59238,2600.1,2600.0,0.38459]
[1727281180515,0.38459,2600.0,2599.9,0.3846]
[1727281180805,0.38462,2599.9,2599.8,0.38461]
[1727281182018,6.5076,2600.1,2600.0,0.38459]
[1727281182019,3.59239,2600.1,2600.0,0.38459]
[1727281183110,0.38461,2600.0,2599.9,0.38459]
[1727281185709,3.59239,2600.1,2600.0,0.38459]
[1727281185913,0.38461,2600.0,2599.9,0.3846]
[1727281186423,0.38467,2599.6,2599.5,0.38465]
[1727281186919,3.2078,2599.8,2599.4,2.1902]
[1727281187211,1.34619,2599.8,2599.7,0.38462]
[1727281187419,1.34619,2599.8,2599.6,0.38464]
[1727281187420,0.38465,2599.7,2599.6,0.38464]
[1727281188417,0.6431,2599.9,2599.6,3.8464]
[1727281188716,0.38459,2600.0,2599.9,0.38461]
[1727281188918,3.2078,2600.1,2600.0,0.38459]
[1727281189112,3.2078,2600.1,2600.0,0.99129]
[1727281189423,3.2078,2600.1,2600.0,4.83769]
[1727281189711,0.38454,2600.4,2600.3,0.38455]
[1727281189918,3.2078,2600.5,2600.4,0.38453]
[1727281191310,0.9963346,2600.8,2600.7,0.38449]
[1727281191517,0.9963346,2600.9,2600.8,0.38447]
[1727281191714,1.6235346,2601.1,2601.0,0.38444]
[1727281191913,4.4776,2601.3,2600.9,3.66114]
[1727281191914,0.9963346,2601.3,2600.9,3.66114]
[1727281192116,0.9963346,2601.5,2601.2,0.38441]
[1727281192307,0.38441,2601.3,2601.1,0.99492]
[1727281192813,0.3844,2601.4,2601.3,0.38439]
[1727281193019,3.6963346,2601.5,2601.2,0.38441]
[1727281193221,0.38441,2601.3,2601.1,0.99492]
[1727281193814,3.6963346,2601.5,2601.1,0.6105]
[1727281194015,3.08438,2601.5,2601.2,0.3844]
[1727281194222,4.2041346,2601.6,2601.5,0.38437]
[1727281194512,3.2078,2601.6,2601.5,4.22837]
[1727281194905,1.6330346,2601.9,2601.5,6.544]
[1727281194906,0.9963346,2601.9,2601.5,6.544]
[1727281195108,5.70197476,2602.2,2602.0,0.3843]
[1727281195312,5.70197476,2602.2,2602.1,0.38428]
[1727281195313,3.2078,2602.2,2602.1,0.38428]
[1727281195515,2.64162021,2602.5,2601.9,2.7]
[1727281195516,1.6408346,2602.5,2601.9,2.7]
[1727281195708,1.02873,2602.5,2601.9,2.7]
[1727281195907,0.6445,2602.5,2601.9,2.7]
[1727281196210,0.38429,2602.1,2601.8,0.6419]
[1727281196410,0.38429,2602.1,2601.8,1.02622]
[1727281196609,3.08427,2602.2,2601.9,0.38431]
[1727281196810,2.7,2602.2,2602.0,0.38429]
[1727281197214,3.08427,2602.2,2601.9,0.3843]
[1727281198318,0.38429,2602.1,2601.8,1.02621]
[1727281198511,2.7,2602.2,2601.9,0.38431]
[1727281198512,3.08427,2602.2,2601.9,0.38431]
[1727281198912,2.7,2602.2,2602.0,0.38429]
[1727281199115,5.9078,2602.4,2601.8,0.6419]
[1727281199520,3.2078,2602.4,2602.3,0.38425]
[1727281200518,3.2078,2602.4,2602.3,4.22665]
[1727281201109,3.2078,2602.4,2602.3,0.38425]
[1727281203319,3.2078,2602.4,2602.2,0.6174]
[1727281203826,0.6673,2602.9,2602.8,0.38418]
[1727281204028,3.8404,2603.1,2602.6,2.7]
[1727281204029,3.8202,2603.1,2602.6,2.7]
[1727281204320,0.38415,2603.0,2602.7,0.38418]
[1727281204718,0.38415,2603.0,2602.8,0.38417]
[1727281204915,3.8202,2603.1,2602.8,0.38417]
[1727281205219,4.20434,2603.1,2602.8,0.38417]
[1727281205533,4.20434,2603.1,2602.5,0.6674]
[1727281205534,6.5202,2603.1,2602.5,0.6674]
[1727281205713,0.38417,2602.9,2602.7,0.38419]
[1727281205919,6.5202,2603.1,2602.6,0.3842]
[1727281206113,7.48056,2603.1,2602.6,0.38421]
[1727281206317,0.38419,2602.8,2602.5,1.05161]
[1727281206525,7.48056,2603.1,2602.6,0.3842]
[1727281206526,3.08417,2602.9,2602.6,0.3842]
[1727281206818,2.7,2602.9,2602.5,1.05161]
[1727281207020,2.7,2602.7,2602.3,3.2078]
[1727281207219,3.59203,2602.5,2602.2,1.00166]
[1727281207420,2.7,2602.7,2602.2,0.6174]
[1727281207421,1.68852,2602.6,2602.2,0.6174]
[1727281207617,1.3043,2602.6,2602.2,0.6174]
[1727281207825,1.3043,2602.6,2602.5,0.38422]
[1727281208125,1.3043,2602.6,2602.4,0.38423]
[1727281208126,1.68851,2602.6,2602.4,0.38423]
[1727281208718,1.3043,2602.6,2602.5,0.38422]
[1727281209228,3.2078,2602.8,2602.7,0.38419]
[1727281209717,3.59198,2602.8,2602.6,0.3842]
[1727281209927,3.2078,2602.8,2602.7,0.38419]
[1727281210828,0.38416,2602.9,2602.4,2.7]
[1727281211026,1.68436,2603.0,2602.8,0.38417]
[1727281211330,1.68436,2603.0,2602.2,6.5252]
[1727281211331,2.7,2602.9,2602.2,6.5252]
[1727281211531,3.2078,2602.8,2602.2,3.8252]
[1727281211831,0.3842,2602.7,2602.5,0.38422]
[1727281212033,0.38421,2602.6,2602.5,0.38422]
[1727281213118,0.38421,2602.6,2602.2,6.5252]
[1727281213314,4.16826,2602.8,2602.2,6.5252]
[1727281213525,0.6406,2602.5,2602.4,0.38423]
[1727281213728,0.6406,2602.5,2602.3,0.38424]
[1727281214118,0.6422,2602.4,2602.3,0.38424]
[1727281215325,0.6406,2602.5,2602.4,0.38424]
[1727281215828,1.0264,2602.7,2602.6,0.38421]
[1727281216029,0.38421,2602.6,2602.2,6.5252]
[1727281216230,0.96052,2602.6,2602.0,3.3281]
[1727281216432,5.46166,2602.5,2602.2,0.38426]
[1727281216624,5.46166,2602.5,2602.4,0.38424]
[1727281216625,3.8438,2602.5,2602.4,0.38424]
[1727281216822,0.6422,2602.7,2602.6,0.38421]
[1727281218431,4.88526,2602.9,2602.8,0.38418]
[1727281219039,0.38418,2602.8,2602.7,0.38418]
[1727281219232,4.88527,2602.9,2602.7,0.38418]
[1727281219531,4.88527,2602.9,2602.5,1.301]
[1727281219532,4.5011,2602.9,2602.5,1.301]
[1727281220433,4.5011,2602.9,2602.6,2.7]
[1727281220631,4.5011,2602.9,2602.5,1.301]
[1727281220836,4.5011,2602.9,2602.5,0.6293]
[1727281221035,4.5011,2602.9,2602.2,5.9078]
[1727281222236,2.7,2602.7,2602.0,1.2643]
[1727281222440,3.2078,2602.6,2602.0,0.6231]
[1727281222642,1.2933,2602.9,2601.7,1.2643]
[1727281222643,3.2078,2602.3,2601.7,1.2643]
[1727281222936,0.6128,2602.2,2601.7,1.2643]
[1727281224227,0.6128,2602.2,2601.8,2.7]
[1727281224536,0.6128,2602.2,2602.0,2.7]
[1727281225332,0.6128,2602.2,2601.8,2.7]
[1727281225535,0.6128,2602.2,2601.7,1.2643]
[1727281225841,3.8284,2602.1,2601.6,3.2078]
[1727281226338,0.6478,2602.0,2601.6,3.2078]
[1727281227339,0.6478,2602.0,2601.8,2.7]
[1727281227530,0.6128,2602.2,2601.8,2.7]
[1727281227736,0.6128,2602.2,2602.0,2.7]
[1727281228037,3.2078,2602.4,2602.0,2.7]
[1727281228534,3.2078,2602.4,2602.2,2.7]
[1727281228740,3.2078,2602.4,2602.3,1.2465]
[1727281228930,0.6114,2602.8,2602.3,8.9063]
[1727281229131,0.6114,2602.8,2602.6,2.7]
[1727281229834,4.484,2603.0,2602.6,2.7]
[1727281230042,0.6114,2602.9,2602.6,2.7]
[1727281230339,0.6114,2602.9,2602.3,1.8561]
[1727281231435,0.6114,2602.9,2602.3,1.2465]
[1727281233940,3.2078,2602.7,2602.3,3.9465]
[1727281234547,3.2078,2602.7,2602.6,2.7]
[1727281234743,3.8684,2603.0,2602.6,2.7]
[1727281235541,4.8647346,2603.0,2602.4,2.8104]
[1727281235741,3.2078,2602.7,2602.4,0.1104]
[1727281236044,7.5647346,2603.0,2602.4,0.1104]
[1727281236232,0.9963346,2602.9,2602.4,0.1104]
[1727281236431,0.9963346,2602.9,2602.4,2.8104]
[1727281237146,0.9963346,2602.8,2602.4,2.8104]
[1727281238250,0.9963346,2602.7,2602.4,0.1104]
[1727281238450,0.9963346,2602.6,2602.4,0.1104]
[1727281238638,1.6378346,2602.5,2602.4,0.1104]
[1727281239343,2.13934016,2602.5,2602.4,0.1104]
[1727281240046,0.6415,2602.5,2602.4,0.1104]
[1727281240243,2.13934016,2602.5,2602.4,0.1104]
[1727281240439,2.33158667,2602.5,2602.4,0.1104]
[1727281240636,1.44614651,2602.5,2602.4,0.1104]
[1727281240837,3.44326672,2602.5,2602.4,0.1104]
[1727281241541,13.28566672,2602.5,2602.4,0.1104]
[1727281241743,15.43093533,2602.5,2602.4,0.0295]
[1727281241945,12.97725323,2602.5,2602.4,0.0295]
[1727281242641,12.97740302,2602.5,2602.4,0.0295]
[1727281244344,6.97740302,2602.5,2602.4,0.0295]
[1727281244546,5.6291037,2602.5,2602.4,0.0295]
[1727281244844,1.4966551,2602.5,2602.4,2.7295]
[1727281245353,0.99780327,2602.6,2602.4,6.5719]
[1727281245647,0.99780327,2602.7,2602.5,3.3686]
[1727281245838,0.99780327,2602.7,2602.5,3.9997]
[1727281248138,0.99780327,2602.7,2602.5,7.8421]
[1727281248338,1.68886821,2602.9,2602.6,0.6579]
[1727281248339,0.99780327,2602.8,2602.6,0.6579]
[1727281248538,0.99780327,2602.8,2602.7,2.7]
[1727281248844,0.99780327,2603.1,2602.7,9.7502]
[1727281249046,0.99780327,2603.2,2603.0,2.7]
[1727281249348,1.4966551,2603.3,2603.1,1.3194]
[1727281249349,0.99780327,2603.3,2603.1,1.3194]
[1727281249552,0.99780327,2603.3,2603.2,2.7]
[1727281249747,0.99780327,2603.4,2603.2,6.5657]
[1727281249951,0.99780327,2603.5,2603.2,6.5657]
[1727281250147,0.99780327,2603.5,2603.4,2.7]
[1727281250548,0.99780327,2603.6,2603.4,2.7]
[1727281251448,0.99780327,2603.7,2603.4,2.7]
[1727281251843,1.68880814,2603.8,2603.4,2.7]
[1727281251844,0.99780327,2603.6,2603.4,2.7]
[1727281252049,0.99780327,2603.6,2603.2,3.8657]
[1727281252050,0.99780327,2603.7,2603.5,2.7]
[1727281252350,0.99780327,2603.8,2603.6,0.6583]
[1727281253255,0.99780327,2603.7,2603.6,0.6583]
[1727281253552,0.99780327,2603.8,2603.6,0.6583]
[1727281254648,0.99780327,2603.8,2603.4,2.7]
[1727281256643,4.20560327,2603.9,2603.4,2.7]
[1727281258658,3.2078,2603.9,2603.4,2.7]
[1727281258958,3.2078,2603.9,2603.6,2.7]
[1727281259148,3.2078,2603.9,2603.8,2.7]
[1727281259351,3.2078,2603.9,2603.7,0.6636]
[1727281259554,3.2078,2603.9,2603.3,3.3474]
[1727281260054,3.2078,2603.9,2603.4,0.6636]
[1727281260455,3.8592,2603.9,2603.4,0.6636]
[1727281261163,3.2078,2603.9,2603.5,2.7]
[1727281261357,3.2078,2603.9,2603.5,3.3196]
[1727281261746,0.6637,2604.0,2603.7,2.7]
[1727281261951,7.01757797,2604.3,2603.5,3.8274]
[1727281261952,0.99780327,2604.3,2603.9,5.9078]
[1727281262153,1.4966551,2604.5,2603.8,0.601]
[1727281262154,4.20560327,2604.6,2604.0,0.6636]
[1727281262753,3.2078,2604.3,2604.0,0.6636]
[1727281262959,3.2078,2604.3,2603.8,3.301]
[1727281263257,1.2595,2604.2,2603.8,3.301]
[1727281267058,1.2595,2604.2,2603.8,0.601]
[1727281267254,3.2078,2604.0,2603.7,0.6576]
[1727281268157,3.2078,2604.0,2603.5,3.3212]
[1727281268354,3.2078,2603.7,2603.5,3.3212]
[1727281269353,3.2078,2603.7,2603.4,0.1104]
[1727281269557,1.2139,2603.6,2603.4,0.1104]
[1727281271062,3.2078,2603.7,2603.4,6.6512]
[1727281271359,3.2078,2603.7,2603.6,2.7]
[1727281271549,0.6016,2604.1,2603.6,2.7]
[1727281271749,0.6016,2604.1,2603.5,3.8444]
[1727281271750,0.6016,2604.1,2603.9,2.7]
[1727281273752,3.2078,2604.2,2603.9,2.7]
[1727281273956,3.2078,2604.2,2604.1,2.7]
[1727281274350,3.2078,2604.2,2603.9,2.7]
[1727281274962,3.2078,2604.2,2604.1,2.7]
[1727281278461,3.2078,2604.2,2603.8,0.6054]
[1727281278462,7.0478,2604.2,2603.8,0.6054]
[1727281278762,0.6436,2604.1,2603.8,0.6054]
[1727281278960,0.6218,2604.0,2603.8,0.6054]
[1727281279159,1.2576,2604.0,2603.8,0.6054]
[1727281280664,1.2576,2604.0,2603.9,2.7]
[1727281281767,3.2078,2604.2,2603.9,6.54]
[1727281282065,3.2078,2604.2,2604.0,3.3216]
[1727281282264,3.2078,2604.2,2603.8,0.6054]
[1727281282265,3.2078,2604.2,2603.8,3.3054]
[1727281282467,0.6362,2604.1,2603.8,3.3054]
[1727281283467,0.6076,2604.0,2603.8,3.3054]
[1727281285672,0.6362,2604.1,2603.8,3.3054]
[1727281285965,3.2078,2604.2,2603.8,3.3054]
[1727281286165,3.2078,2604.2,2604.0,2.7]
[1727281290772,3.2078,2604.2,2603.8,3.3054]
[1727281290978,0.99780327,2604.1,2603.8,3.3054]
[1727281291875,0.99780327,2604.0,2603.8,2.7]
[1727281292079,2.28410327,2604.0,2603.8,2.7]
[1727281292979,0.99780327,2603.9,2603.8,2.7]
[1727281294372,1.4966551,2603.9,2603.8,2.7]
[1727281295669,3.2078,2603.9,2603.6,0.6556]
[1727281295871,3.2078,2603.9,2603.3,3.3641]
[1727281295872,1.99547163,2603.7,2603.3,3.3641]
[1727281296076,0.99803451,2603.4,2603.3,3.9652]
[1727281297272,0.99803451,2603.4,2603.3,7.8068]
[1727281298573,0.99803451,2603.5,2603.3,7.8068]
[1727281298776,0.99803451,2603.5,2603.4,2.7]
[1727281299171,0.99803451,2603.5,2603.4,6.5408]
[1727281299467,0.99803451,2603.6,2603.4,12.5408]
[1727281299675,0.99803451,2603.6,2603.5,7.0486]
[1727281300180,0.99803451,2603.7,2603.5,7.0486]
[1727281300379,1.49705177,2603.8,2603.6,2.7]
[1727281300576,0.99786643,2603.7,2603.6,2.7]
[1727281302194,1.49705177,2603.7,2603.6,2.7]
[1727281302379,1.49705177,2603.7,2603.4,2.7]
[1727281302570,0.99774837,2603.5,2603.4,2.7]
[1727281302769,0.99774837,2603.6,2603.4,2.7]
[1727281304579,0.99774837,2603.6,2603.4,6.5408]
[1727281305078,0.99774837,2603.6,2603.4,2.7]
[1727281306781,1.49662256,2603.5,2603.2,2.7]
[1727281306976,1.49662256,2603.5,2603.0,6.51983523]
[1727281306977,4.70423129,2603.3,2603.0,6.51983523]
[1727281307281,2.49340268,2603.1,2602.9,1.00597409]
[1727281307486,2.49340268,2603.1,2602.8,2.7]
[1727281307487,1.49624587,2603.0,2602.8,2.7]
[1727281307673,2.74834587,2603.0,2602.8,2.7]
[1727281308082,1.49624587,2602.9,2602.8,2.7]
[1727281308386,0.99666318,2602.9,2602.8,2.7]
[1727281308778,0.99666318,2603.0,2602.8,2.7]
[1727281309781,0.99666318,2602.9,2602.8,2.7]
[1727281309989,0.99666318,2603.0,2602.8,2.7]
[1727281312380,1.99381999,2603.1,2602.8,2.7]
[1727281313185,0.99666318,2603.1,2602.8,2.7]
[1727281315285,0.99666318,2603.1,2603.0,2.7]
[1727281316390,0.99666318,2603.2,2603.0,2.7]
[1727281318486,2.24606318,2603.3,2603.0,2.7]
[1727281319486,2.24606318,2603.3,2602.6,0.6436]
[1727281319487,0.99666318,2603.3,2603.2,2.7]
[1727281319692,3.2078,2603.4,2603.2,2.7]
[1727281319888,3.2078,2603.4,2603.3,0.6244]
[1727281320386,3.2078,2603.4,2603.2,2.7]
[1727281320586,3.2078,2603.4,2602.8,3.2078]
[1727281320587,0.99666318,2603.3,2603.0,2.7]
[1727281321488,3.2078,2603.1,2603.0,2.7]
[1727281321996,3.2078,2603.1,2602.7,0.6244]
[1727281321997,9.30076318,2603.1,2602.8,2.7]
[1727281322196,0.638,2603.0,2602.8,2.7]
[1727281322488,1.62256318,2603.1,2602.8,2.7]
[1727281322791,4.83326318,2603.4,2603.0,2.7]
[1727281323097,4.62834655,2603.5,2602.8,7.0494]
[1727281323098,0.99666318,2603.5,2603.3,2.7]
[1727281323279,0.6259,2603.6,2603.3,2.7]
[1727281323594,0.6259,2603.6,2603.5,2.7]
[1727281324382,1.62256318,2603.6,2603.5,2.7]
[1727281324780,0.6259,2603.6,2603.5,2.7]
[1727281326085,0.99666318,2603.7,2603.5,2.7]
[1727281326395,2.28196318,2603.9,2603.6,0.6029]
[1727281326694,0.99666318,2603.9,2603.8,2.7]
[1727281326888,2.10634587,2604.0,2603.8,2.7]
[1727281326889,1.60676318,2604.0,2603.8,2.7]
[1727281328598,1.60676318,2604.0,2603.6,0.6029]
[1727281328599,0.99666318,2604.0,2603.6,0.6029]
[1727281328786,2.10824587,2604.1,2603.9,2.7]
[1727281328787,1.60866318,2604.1,2603.9,2.7]
[1727281328990,3.10490905,2604.1,2603.9,2.7]
[1727281329298,1.60866318,2604.1,2603.9,2.7]
[1727281329491,3.10490905,2604.1,2603.7,3.3613]
[1727281329893,0.99666318,2604.0,2603.7,3.3613]
[1727281330095,0.99666318,2604.0,2603.9,2.7]
[1727281330498,4.70404587,2604.2,2603.9,2.7]
[1727281330499,0.99666318,2604.1,2603.9,2.7]
[1727281330998,0.99666318,2604.1,2603.7,0.6613]
[1727281330999,0.99666318,2604.0,2603.7,2.7]
[1727281331205,2.28136318,2604.0,2603.7,2.7]
[1727281331908,0.99666318,2603.9,2603.7,2.7]
[1727281334889,0.99666318,2604.0,2603.7,2.7]
[1727281335093,0.99666318,2604.1,2603.9,2.7]
[1727281335294,2.65337163,2604.3,2604.0,0.611]
[1727281335295,0.99666318,2604.3,2604.0,0.611]
[1727281335506,2.49290905,2604.4,2604.1,3.3078]
[1727281335806,0.99666318,2604.4,2604.1,3.3078]
[1727281335999,0.99666318,2604.4,2604.3,2.7]
[1727281336307,5.34394587,2604.5,2604.3,2.7]
[1727281336308,0.99666318,2604.5,2604.3,2.7]
[1727281336502,4.20446318,2604.5,2604.3,2.7]
[1727281337294,0.99666318,2604.4,2604.1,3.3078]
[1727281337910,0.99666318,2604.3,2604.1,3.3078]
[1727281338199,0.99666318,2604.4,2604.1,3.3078]
[1727281338503,0.99666318,2604.3,2604.1,3.3078]
[1727281338902,3.2078,2604.2,2604.0,0.611]
[1727281339308,0.6238,2604.1,2604.0,0.611]
[1727281339801,0.6238,2604.1,2603.7,2.7]
[1727281340000,0.99666318,2604.0,2603.6,1.2194]
[1727281340202,4.20446318,2603.9,2603.6,2.7]
[1727281340406,4.20446318,2603.9,2603.6,3.3038]
[1727281340598,0.99666318,2603.8,2603.6,3.3038]
[1727281341403,0.99666318,2603.8,2603.6,2.7]
[1727281341606,0.99666318,2603.7,2603.6,2.7]
[1727281342306,0.99666318,2603.8,2603.6,3.3578]
[1727281342603,4.70404587,2603.9,2603.7,3.3294]
[1727281342604,0.99666318,2603.9,2603.7,3.3294]
[1727281342811,1.49624587,2604.0,2603.8,3.2078]
[1727281343007,2.49290905,2604.2,2603.9,2.7]
[1727281343205,3.2078,2604.3,2604.1,2.7]
[1727281343404,3.2078,2604.3,2604.2,1.9302]
[1727281344295,3.2078,2604.3,2604.2,1.2872]
[1727281345505,3.2078,2604.3,2604.1,2.7]
[1727281346012,3.8511,2604.3,2604.1,2.7]
[1727281346215,4.84776318,2604.3,2603.9,2.7]
[1727281346506,4.84776318,2604.3,2603.7,3.3211]
[1727281346507,0.99666318,2604.1,2603.7,3.3211]
[1727281346719,0.99666318,2604.0,2603.7,3.3211]
[1727281346904,4.20446318,2604.0,2603.7,3.3211]
[1727281347223,0.99666318,2603.9,2603.7,3.3211]
[1727281349609,0.99666318,2604.0,2603.7,3.3211]
[1727281350309,0.99666318,2603.9,2603.7,3.3211]
[1727281351608,0.99666318,2604.0,2603.7,3.3211]
[1727281351919,3.2078,2604.1,2603.7,3.3211]
[1727281351920,0.99666318,2603.9,2603.7,3.3211]
[1727281352416,0.99666318,2604.0,2603.7,3.3211]
[1727281352807,0.99666318,2603.9,2603.7,3.3211]
[1727281357110,0.99666318,2604.0,2603.7,3.3211]
[1727281357502,0.99666318,2604.1,2603.7,3.3211]
[1727281357709,0.99666318,2604.1,2603.9,2.7]
[1727281357912,0.99666318,2604.3,2603.9,2.7]
[1727281358105,0.99666318,2604.3,2604.1,2.7]
[1727281358302,0.99666318,2604.3,2604.2,0.6116]
[1727281358506,4.20446318,2604.4,2604.2,0.6116]
[1727281358706,4.20446318,2604.4,2604.3,2.7]
[1727281358707,3.2078,2604.4,2604.3,2.7]
[1727281359111,4.20446318,2604.4,2604.3,2.7]
[1727281359413,4.20446318,2604.4,2604.2,0.6116]
[1727281359617,0.99666318,2604.3,2604.2,0.6116]